fUST/lending_fUST_20240929
["ID","MTS","AMOUNT","RATE_DAILY","PERIOD"]
[339420141,1727603540419,-503.08,0.0002,2]
[339420142,1727603540430,-1583.99,0.0002,2]
[339420143,1727603540440,-518.35427101,0.0002,2]
[339420144,1727603540449,-500.0,0.0002,2]
[339420145,1727603540459,-510.03729572,0.0002,2]
[339420146,1727603540469,-500.0,0.0002,2]
[339420147,1727603540479,-500.0,0.0002,2]
[339420148,1727603540489,-500.0,0.0002,2]
[339420149,1727603540499,-500.0,0.0002,2]
[339420150,1727603540509,-500.0,0.0002,2]
[339420151,1727603540519,-500.0,0.0002,2]
[339420152,1727603540529,-507.38,0.0002,2]
[339420153,1727603540539,-500.0,0.0002,2]
[339420154,1727603540549,-500.0,0.0002,2]
[339420155,1727603540560,-500.0,0.0002,2]
[339420156,1727603540570,-500.0,0.0002,2]
[339420157,1727603540580,-500.0,0.0002,2]
[339420158,1727603540590,-504.20913132,0.0002,2]
[339420159,1727603540600,-500.0,0.0002,2]
[339420160,1727603540610,-500.0,0.0002,2]
[339420161,1727603540621,-563.66,0.0002,2]
[339420162,1727603540630,-500.0,0.0002,2]
[339420163,1727603540642,-500.0,0.0002,2]
[339420164,1727603540652,-500.0,0.0002,2]
[339420165,1727603540662,-574.96,0.0002,2]
[339420166,1727603540672,-500.0,0.0002,2]
[339420167,1727603540682,-500.0,0.0002,2]
[339420168,1727603540692,-500.0,0.0002,2]
[339420169,1727603540702,-500.0,0.0002,2]
[339420170,1727603540711,-500.0,0.0002,2]
[339420171,1727603540721,-500.0,0.0002,2]
[339420172,1727603540731,-500.0,0.0002,2]
[339420173,1727603540741,-178.09373562,0.0002,2]
[339420174,1727603540751,-500.0,0.0002,2]
[339420175,1727603540761,-632.13,0.0002,2]
[339420176,1727603540771,-528.1694376,0.0002,5]
[339420177,1727603540781,-249.84382731,0.0002,2]
[339420178,1727603540794,-500.0,0.0002,2]
[339420179,1727603540804,-500.0,0.0002,2]
[339420180,1727603540815,-537.86,0.0002,2]
[339420181,1727603540825,-500.0,0.0002,2]
[339420182,1727603540835,-500.0,0.0002,2]
[339420183,1727603540847,-500.0,0.0002,2]
[339420184,1727603540858,-500.0,0.0002,2]
[339420185,1727603540869,-504.21580932,0.0002,2]
[339420186,1727603540879,-500.0,0.0002,2]
[339420187,1727603540889,-500.0,0.0002,2]
[339420188,1727603540899,-3333.33,0.0002,2]
[339420189,1727603540909,-1223.77,0.0002,2]
[339420190,1727603540920,-690.51,0.0002,2]
[339420191,1727603540930,-805.3,0.0002,2]
[339420192,1727603540939,-539.88,0.0002,2]
[339420193,1727603540949,-500.0,0.0002,2]
[339420194,1727603540960,-500.0,0.0002,2]
[339420195,1727603540970,-500.0,0.0002,2]
[339420196,1727603540980,-1406.25,0.0002,2]
[339420197,1727603540991,-500.0,0.0002,2]
[339420198,1727603541001,-500.0,0.0002,2]
[339420199,1727603541011,-500.0,0.0002,2]
[339420200,1727603541022,-500.0,0.0002,2]
[339420201,1727603541032,-500.0,0.0002,2]
[339420202,1727603541042,-500.0,0.0002,2]
[339420203,1727603541051,-500.0,0.0002,2]
[339420204,1727603541061,-500.0,0.0002,2]
[339420205,1727603541071,-666.93,0.0002,2]
[339420206,1727603541082,-500.0,0.0002,2]
[339420207,1727603541092,-548.09307694,0.0002,2]
[339420208,1727603541102,-500.0,0.0002,2]
[339420209,1727603541112,-500.0,0.0002,2]
[339420210,1727603541122,-500.0,0.0002,2]
[339420211,1727603541132,-500.0,0.0002,2]
[339420212,1727603541142,-250.0,0.0002,2]
[339420213,1727603541153,-500.0,0.0002,2]
[339420214,1727603541162,-500.0,0.0002,2]
[339420215,1727603541172,-500.0,0.0002,2]
[339420216,1727603541183,-500.0,0.0002,2]
[339420217,1727603541193,-733.04,0.0002,2]
[339420218,1727603541203,-500.0,0.0002,2]
[339420219,1727603541212,-500.0,0.0002,2]
[339420220,1727603541222,-500.0,0.0002,2]
[339420221,1727603541232,-1093.72,0.0002,2]
[339420222,1727603541242,-500.0,0.0002,2]
[339420223,1727603541251,-651.51,0.0002,2]
[339420224,1727603541262,-500.0,0.0002,2]
[339420225,1727603541272,-500.0,0.0002,2]
[339420226,1727603541282,-286.54970528,0.0002,2]
[339420227,1727603541293,-500.0,0.0002,2]
[339420228,1727603541305,-578.1,0.0002,2]
[339420229,1727603541316,-360.37996579,0.0002,2]
[339420230,1727603541327,-500.0,0.0002,2]
[339420231,1727603541339,-500.0,0.0002,2]
[339420232,1727603541352,-500.0,0.0002,2]
[339420233,1727603541363,-500.0,0.0002,2]
[339420234,1727603541374,-500.0,0.0002,2]
[339420235,1727603541387,-563.42,0.0002,2]
[339420236,1727603541398,-500.0,0.0002,2]
[339420237,1727603541408,-500.0,0.0002,2]
[339420238,1727603541419,-500.0,0.0002,2]
[339420239,1727603541430,-500.0,0.0002,2]
[339420240,1727603541440,-500.0,0.0002,2]
[339420241,1727603541450,-500.0,0.0002,2]
[339420242,1727603541460,-500.0,0.0002,2]
[339420243,1727603541472,-500.0,0.0002,2]
[339420244,1727603541484,-516.24705681,0.0002,2]
[339420245,1727603541494,-523.16,0.0002,2]
[339420246,1727603541505,-500.0,0.0002,2]
[339420247,1727603541516,-500.0,0.0002,2]
[339420248,1727603541527,-500.0,0.0002,2]
[339420249,1727603541538,-500.0,0.0002,2]
[339420250,1727603541551,-500.0,0.0002,2]
[339420251,1727603541563,-500.0,0.0002,2]
[339420252,1727603541575,-500.0,0.0002,2]
[339420253,1727603541586,-500.0,0.0002,2]
[339420254,1727603541600,-635.47,0.0002,2]
[339420255,1727603541612,-500.0,0.0002,2]
[339420256,1727603541623,-500.0,0.0002,2]
[339420257,1727603541636,-500.0,0.0002,2]
[339420258,1727603541648,-836.64,0.0002,2]
[339420259,1727603541659,-500.0,0.0002,2]
[339420260,1727603541671,-629.28,0.0002,2]
[339420261,1727603541683,-500.0,0.0002,2]
[339420262,1727603541694,-500.0,0.0002,2]
[339420263,1727603541705,-500.0,0.0002,2]
[339420264,1727603541718,-500.0,0.0002,2]
[339420265,1727603541731,-500.0,0.0002,2]
[339420266,1727603541742,-500.0,0.0002,2]
[339420267,1727603541753,-273.90947125,0.0002,2]
[339420268,1727603541765,-500.0,0.0002,2]
[339420269,1727603541776,-500.0,0.0002,2]
[339420270,1727603541790,-500.0,0.0002,2]
[339420271,1727603541803,-549.40501014,0.0002,2]
[339420272,1727603541815,-500.0,0.0002,2]
[339420273,1727603541826,-506.65,0.0002,2]
[339420274,1727603541837,-500.0,0.0002,2]
[339420275,1727603541849,-687.06,0.0002,2]
[339420276,1727603541859,-500.0,0.0002,2]
[339420277,1727603541870,-685.14,0.0002,2]
[339420278,1727603541881,-567.6954003,0.0002,2]
[339420279,1727603541892,-500.0,0.0002,2]
[339420280,1727603541904,-500.0,0.0002,2]
[339420281,1727603541916,-1003.48,0.0002,2]
[339420282,1727603541930,-500.0,0.0002,2]
[339420283,1727603541940,-500.0,0.0002,2]
[339420284,1727603541952,-500.0,0.0002,2]
[339420285,1727603541963,-956.49,0.0002,2]
[339420286,1727603541975,-500.0,0.0002,2]
[339420287,1727603541984,-500.0,0.0002,2]
[339420288,1727603541996,-672.19,0.0002,2]
[339420289,1727603542008,-500.0,0.0002,2]
[339420290,1727603542019,-500.0,0.0002,2]
[339420291,1727603542030,-500.0,0.0002,2]
[339420292,1727603542042,-692.51,0.0002,2]
[339420293,1727603542054,-390.26262375,0.0002,2]
[339420294,1727603542066,-500.0,0.0002,2]
[339420295,1727603542077,-500.0,0.0002,2]
[339420296,1727603542088,-500.0,0.0002,2]
[339420297,1727603542101,-500.0,0.0002,2]
[339420298,1727603542112,-500.0,0.0002,2]
[339420299,1727603542123,-500.0,0.0002,2]
[339420300,1727603542135,-500.0,0.0002,2]
[339420301,1727603542146,-500.0,0.0002,2]
[339420302,1727603542158,-1860.39,0.0002,2]
[339420303,1727603542171,-500.0,0.0002,2]
[339420304,1727603542182,-757.46,0.0002,2]
[339420305,1727603542195,-676.06,0.0002,2]
[339420306,1727603542206,-500.0,0.0002,2]
[339420307,1727603542217,-200.13536792,0.0002,2]
[339420308,1727603542228,-500.0,0.0002,2]
[339420309,1727603542239,-500.0,0.0002,2]
[339420310,1727603542251,-500.0,0.0002,2]
[339420311,1727603542262,-500.0,0.0002,2]
[339420312,1727603542273,-990.62,0.0002,2]
[339420313,1727603542285,-500.0,0.0002,2]
[339420314,1727603542295,-500.0,0.0002,2]
[339420315,1727603542307,-500.0,0.0002,2]
[339420316,1727603542317,-500.0,0.0002,2]
[339420317,1727603542326,-595.36,0.0002,2]
[339420318,1727603542336,-500.0,0.0002,2]
[339420319,1727603542346,-500.0,0.0002,2]
[339420320,1727603542355,-500.0,0.0002,2]
[339420321,1727603542365,-500.0,0.0002,2]
[339420322,1727603542375,-865.69,0.0002,2]
[339420323,1727603542385,-349.49037163,0.0002,2]
[339420324,1727603542395,-500.0,0.0002,2]
[339420325,1727603542404,-500.0,0.0002,2]
[339420326,1727603542417,-500.0,0.0002,2]
[339420327,1727603542428,-677.83,0.0002,2]
[339420328,1727603542440,-500.0,0.0002,2]
[339420329,1727603542449,-616.29,0.0002,2]
[339420330,1727603542460,-500.0,0.0002,2]
[339420331,1727603542473,-500.0,0.0002,2]
[339420332,1727603542483,-500.0,0.0002,2]
[339420333,1727603542495,-500.0,0.0002,2]
[339420334,1727603542506,-500.0,0.0002,2]
[339420335,1727603542517,-404.27332831,0.0002,2]
[339420336,1727603542528,-516.42587482,0.0002,2]
[339420337,1727603542538,-707.0,0.0002,2]
[339420338,1727603542550,-578.16,0.0002,2]
[339420339,1727603542562,-500.0,0.0002,2]
[339420340,1727603542827,-1727.88,0.0002,2]
[339420341,1727603542841,-500.0,0.0002,2]
[339420342,1727603542852,-500.0,0.0002,2]
[339420343,1727603542863,-500.0,0.0002,2]
[339420344,1727603542873,-500.0,0.0002,2]
[339420345,1727603542886,-500.0,0.0002,2]
[339420346,1727603542896,-500.0,0.0002,2]
[339420347,1727603542907,-1110.92,0.0002,2]
[339420348,1727603542920,-566.96547307,0.0002,2]
[339420349,1727603542929,-594.03,0.0002,2]
[339420350,1727603542939,-590.19,0.0002,2]
[339420351,1727603542948,-151.31098426,0.0002,2]
[339420352,1727603542958,-500.0,0.0002,2]
[339420353,1727603542967,-500.0,0.0002,2]
[339420354,1727603542977,-500.0,0.0002,2]
[339420355,1727603542986,-500.0,0.0002,2]
[339420356,1727603542996,-500.0,0.0002,2]
[339420357,1727603543007,-500.0,0.0002,2]
[339420358,1727603543016,-500.0,0.0002,2]
[339420359,1727603543026,-500.0,0.0002,2]
[339420360,1727603543036,-500.0,0.0002,2]
[339420361,1727603543046,-830.63,0.0002,2]
[339420362,1727603543057,-500.0,0.0002,2]
[339420363,1727603543066,-500.0,0.0002,2]
[339420364,1727603543076,-506.3,0.0002,2]
[339420365,1727603543086,-594.43,0.0002,2]
[339420366,1727603543095,-2841.86,0.0002,2]
[339420367,1727603543105,-828.86,0.0002,2]
[339420368,1727603543115,-500.0,0.0002,2]
[339420369,1727603543124,-528.25,0.0002,2]
[339420370,1727603543134,-1889.69,0.0002,2]
[339420371,1727603543143,-500.0,0.0002,2]
[339420372,1727603543153,-1014.76,0.0002,2]
[339420373,1727603543162,-500.0,0.0002,2]
[339420374,1727603543172,-500.0,0.0002,2]
[339420375,1727603543181,-500.0,0.0002,2]
[339420376,1727603543192,-500.0,0.0002,2]
[339420377,1727603543203,-500.0,0.0002,2]
[339420378,1727603543212,-500.0,0.0002,2]
[339420379,1727603543222,-500.0,0.0002,2]
[339420380,1727603543232,-890.12,0.0002,2]
[339420381,1727603543242,-500.0,0.0002,2]
[339420382,1727603543252,-500.0,0.0002,2]
[339420383,1727603543261,-500.0,0.0002,2]
[339420384,1727603543271,-500.0,0.0002,2]
[339420385,1727603543281,-500.0,0.0002,2]
[339420386,1727603543291,-454.61820476,0.0002,2]
[339420387,1727603543301,-500.0,0.0002,2]
[339420388,1727603543315,-500.0,0.0002,2]
[339420389,1727603543323,-500.0,0.0002,2]
[339420390,1727603543333,-500.0,0.0002,2]
[339420391,1727603543343,-500.0,0.0002,2]
[339420392,1727603543352,-500.0,0.0002,2]
[339420393,1727603543362,-500.0,0.0002,2]
[339420394,1727603543372,-779.79,0.0002,2]
[339420395,1727603543383,-603.33,0.0002,2]
[339420396,1727603543393,-500.0,0.0002,2]
[339420397,1727603543403,-500.0,0.0002,2]
[339420398,1727603543413,-500.0,0.0002,2]
[339420399,1727603543423,-504.42897413,0.0002,2]
[339420400,1727603543434,-569.86,0.0002,2]
[339420401,1727603543444,-500.0,0.0002,2]
[339420402,1727603543454,-500.0,0.0002,2]
[339420403,1727603543464,-500.0,0.0002,2]
[339420404,1727603543475,-663.18,0.0002,2]
[339420405,1727603543486,-500.0,0.0002,2]
[339420406,1727603543499,-500.0,0.0002,2]
[339420407,1727603543509,-500.0,0.0002,2]
[339420408,1727603543519,-500.0,0.0002,2]
[339420409,1727603543529,-507.90791491,0.0002,2]
[339420410,1727603543539,-624.8764093,0.0002,2]
[339420411,1727603543551,-500.0,0.0002,2]
[339420412,1727603543562,-500.0,0.0002,2]
[339420413,1727603543572,-500.0,0.0002,2]
[339420414,1727603543584,-500.0,0.0002,2]
[339420415,1727603543594,-728.26,0.0002,2]
[339420416,1727603543607,-500.0,0.0002,2]
[339420417,1727603543618,-500.0,0.0002,2]
[339420418,1727603543630,-500.0,0.0002,2]
[339420419,1727603543639,-500.0,0.0002,2]
[339420420,1727603543650,-1894.2,0.0002,2]
[339420421,1727603543662,-551.28,0.0002,2]
[339420422,1727603543673,-500.0,0.0002,2]
[339420423,1727603543682,-500.0,0.0002,2]
[339420424,1727603543692,-500.0,0.0002,2]
[339420425,1727603543702,-840.49,0.0002,2]
[339420426,1727603543712,-500.0,0.0002,2]
[339420427,1727603543721,-817.32,0.0002,2]
[339420428,1727603543730,-518.88,0.0002,2]
[339420429,1727603543739,-500.0,0.0002,2]
[339420430,1727603543749,-500.0,0.0002,2]
[339420431,1727603543758,-640.4603604,0.0002,2]
[339420432,1727603543768,-544.1,0.0002,2]
[339420433,1727603543778,-500.0,0.0002,2]
[339420434,1727603543793,-500.0,0.0002,2]
[339420435,1727603543804,-1517.15,0.0002,2]
[339420436,1727603543815,-1770.33,0.0002,2]
[339420437,1727603543825,-500.0,0.0002,2]
[339420438,1727603543838,-563.27,0.0002,2]
[339420439,1727603543849,-500.0,0.0002,2]
[339420440,1727603543861,-500.0,0.0002,2]
[339420441,1727603543873,-658.78,0.0002,2]
[339420442,1727603543883,-793.0,0.0002,2]
[339420443,1727603543894,-500.0,0.0002,2]
[339420444,1727603543905,-816.02,0.0002,2]
[339420445,1727603543915,-500.0,0.0002,2]
[339420446,1727603543926,-500.0,0.0002,2]
[339420447,1727603543938,-500.0,0.0002,2]
[339420448,1727603543949,-500.0,0.0002,2]
[339420449,1727603543961,-500.0,0.0002,2]
[339420450,1727603543970,-500.0,0.0002,2]
[339420451,1727603543980,-500.0,0.0002,2]
[339420452,1727603543989,-500.0,0.0002,2]
[339420453,1727603544000,-150.0,0.0002,2]
[339420454,1727603544011,-500.0,0.0002,2]
[339420455,1727603544021,-500.0,0.0002,2]
[339420456,1727603544033,-423.60739479,0.0002,2]
[339420457,1727603544043,-500.0,0.0002,2]
[339420458,1727603544055,-522.78,0.0002,2]
[339420459,1727603544066,-673.9,0.0002,2]
[339420460,1727603544079,-582.94,0.0002,2]
[339420461,1727603544090,-1269.53,0.0002,2]
[339420462,1727603544100,-500.0,0.0002,2]
[339420463,1727603544111,-983.6,0.0002,2]
[339420464,1727603544121,-500.0,0.0002,2]
[339420465,1727603544130,-500.0,0.0002,2]
[339420466,1727603544141,-500.0,0.0002,2]
[339420467,1727603544154,-500.0,0.0002,2]
[339420468,1727603544167,-634.9,0.0002,2]
[339420469,1727603544179,-884.39,0.0002,2]
[339420470,1727603544190,-500.0,0.0002,2]
[339420471,1727603544203,-500.0,0.0002,2]
[339420472,1727603544213,-500.0,0.0002,2]
[339420473,1727603544223,-500.0,0.0002,2]
[339420474,1727603544234,-500.0,0.0002,2]
[339420475,1727603544245,-541.91,0.0002,2]
[339420476,1727603544256,-500.0,0.0002,2]
[339420477,1727603544267,-500.0,0.0002,2]
[339420478,1727603544277,-417.91849268,0.0002,2]
[339420479,1727603544287,-500.0,0.0002,2]
[339420480,1727603544298,-537.32,0.0002,2]
[339420481,1727603544310,-500.0,0.0002,2]
[339420482,1727603544320,-521.86,0.0002,2]
[339420483,1727603544331,-515.37,0.0002,2]
[339420484,1727603544344,-500.0,0.0002,2]
[339420485,1727603544354,-177.14835,0.0002,2]
[339420486,1727603544365,-500.0,0.0002,2]
[339420487,1727603544375,-344.94491791,0.0002,2]
[339420488,1727603544385,-595.6,0.0002,2]
[339420489,1727603544395,-570.19,0.0002,2]
[339420490,1727603544408,-500.0,0.0002,2]
[339420491,1727603544418,-582.28,0.0002,2]
[339420492,1727603544428,-500.0,0.0002,2]
[339420493,1727603544437,-514.45,0.0002,2]
[339420494,1727603544447,-1036.21,0.0002,2]
[339420495,1727603544458,-297.72157575,0.0002,2]
[339420496,1727603544467,-1058.66,0.0002,2]
[339420497,1727603544479,-517.64636108,0.0002,2]
[339420498,1727603544489,-500.0,0.0002,2]
[339420499,1727603544501,-557.02,0.0002,2]
[339420500,1727603544513,-1629.84,0.0002,2]
[339420501,1727603544524,-200.0,0.0002,2]
[339420502,1727603544535,-619.24,0.0002,2]
[339420503,1727603544545,-1619.76,0.0002,2]
[339420504,1727603544557,-717.59,0.0002,2]
[339420505,1727603544566,-500.0,0.0002,2]
[339420506,1727603544578,-500.0,0.0002,2]
[339420507,1727603544590,-500.0,0.0002,2]
[339420508,1727603544601,-19498.11,0.0002,2]
[339420509,1727603544612,-500.0,0.0002,2]
[339420510,1727603544622,-376.72727056,0.0002,2]
[339420511,1727603544633,-500.0,0.0002,2]
[339420512,1727603544643,-500.0,0.0002,2]
[339420513,1727603544654,-500.0,0.0002,2]
[339420514,1727603544665,-500.0,0.0002,2]
[339420515,1727603544676,-509.55,0.0002,2]
[339420516,1727603544687,-500.0,0.0002,2]
[339420517,1727603544696,-2421.16,0.0002,2]
[339420518,1727603544707,-2940.12,0.0002,2]
[339420519,1727603544718,-500.0,0.0002,2]
[339420520,1727603544728,-500.0,0.0002,2]
[339420521,1727603544738,-500.0,0.0002,2]
[339420522,1727603544747,-500.0,0.0002,2]
[339420523,1727603544757,-1283.44,0.0002,2]
[339420524,1727603544768,-500.0,0.0002,2]
[339420525,1727603544779,-500.0,0.0002,2]
[339420526,1727603544795,-500.0,0.0002,2]
[339420527,1727603544805,-500.0,0.0002,2]
[339420528,1727603544816,-950.67,0.0002,2]
[339420529,1727603544827,-1372.58,0.0002,2]
[339420530,1727603544836,-687.65,0.0002,2]
[339420531,1727603544846,-506.46708552,0.0002,2]
[339420532,1727603544856,-500.0,0.0002,2]
[339420533,1727603544870,-500.0,0.0002,2]
[339420534,1727603544882,-500.0,0.0002,2]
[339420535,1727603544894,-907.2,0.0002,2]
[339420536,1727603544905,-500.0,0.0002,2]
[339420537,1727603544915,-500.0,0.0002,2]
[339420538,1727603544925,-1445.57,0.0002,2]
[339420539,1727603544936,-500.0,0.0002,2]
[339420540,1727603544947,-500.0,0.0002,2]
[339420541,1727603544958,-500.0,0.0002,2]
[339420542,1727603544970,-542.45,0.0002,2]
[339420543,1727603544981,-500.0,0.0002,2]
[339420544,1727603544990,-500.0,0.0002,2]
[339420545,1727603544999,-500.0,0.0002,2]
[339420546,1727603545008,-500.0,0.0002,2]
[339420547,1727603545020,-500.0,0.0002,2]
[339420548,1727603545030,-500.0,0.0002,2]
[339420549,1727603545040,-500.0,0.0002,2]
[339420550,1727603545053,-500.0,0.0002,2]
[339420551,1727603545063,-500.0,0.0002,2]
[339420552,1727603545075,-500.0,0.0002,2]
[339420553,1727603545086,-500.0,0.0002,2]
[339420554,1727603545098,-600.51,0.0002,2]
[339420555,1727603545108,-500.0,0.0002,2]
[339420556,1727603545121,-500.0,0.0002,2]
[339420557,1727603545130,-442.85300507,0.0002,2]
[339420558,1727603545139,-1803.8,0.0002,2]
[339420559,1727603545148,-500.0,0.0002,2]
[339420560,1727603545157,-500.0,0.0002,2]
[339420561,1727603545166,-500.0,0.0002,2]
[339420562,1727603545175,-500.0,0.0002,2]
[339420563,1727603545185,-500.0,0.0002,2]
[339420564,1727603545195,-500.0,0.0002,2]
[339420565,1727603545204,-243.55542128,0.0002,2]
[339420566,1727603545214,-500.0,0.0002,2]
[339420567,1727603545223,-500.0,0.0002,2]
[339420568,1727603545233,-500.0,0.0002,2]
[339420569,1727603545243,-4201.32,0.0002,2]
[339420570,1727603545254,-500.0,0.0002,2]
[339420571,1727603545266,-500.0,0.0002,2]
[339420572,1727603545277,-500.0,0.0002,2]
[339420573,1727603545287,-500.0,0.0002,2]
[339420574,1727603545298,-500.0,0.0002,2]
[339420575,1727603545309,-512.79712112,0.0002,2]
[339420576,1727603545319,-500.0,0.0002,2]
[339420577,1727603545329,-500.0,0.0002,2]
[339420578,1727603545338,-500.0,0.0002,2]
[339420579,1727603545432,-500.0,0.0002,2]
[339420580,1727603545443,-500.0,0.0002,2]
[339420581,1727603545454,-500.0,0.0002,2]
[339420582,1727603545465,-656.12,0.0002,2]
[339420583,1727603545476,-561.16014819,0.0002,2]
[339420584,1727603545486,-500.0,0.0002,2]
[339420585,1727603545497,-500.0,0.0002,2]
[339420586,1727603545509,-500.0,0.0002,2]
[339420587,1727603545519,-500.0,0.0002,2]
[339420588,1727603545530,-500.0,0.0002,2]
[339420589,1727603545540,-500.0,0.0002,2]
[339420590,1727603545551,-500.0,0.0002,2]
[339420591,1727603545561,-500.0,0.0002,2]
[339420592,1727603545570,-500.0,0.0002,2]
[339420593,1727603545582,-500.0,0.0002,2]
[339420594,1727603545594,-845.95,0.0002,2]
[339420595,1727603545604,-500.0,0.0002,2]
[339420596,1727603545614,-530.7,0.0002,2]
[339420597,1727603545625,-594.60604504,0.0002,2]
[339420598,1727603545636,-176.86118497,0.0002,2]
[339420599,1727603545648,-706.63,0.0002,2]
[339420600,1727603545659,-944.6,0.0002,2]
[339420601,1727603545670,-822.81,0.0002,2]
[339420602,1727603545681,-500.0,0.0002,2]
[339420603,1727603545692,-500.0,0.0002,2]
[339420604,1727603545703,-500.0,0.0002,2]
[339420605,1727603545714,-512.69,0.0002,2]
[339420606,1727603545725,-500.0,0.0002,2]
[339420607,1727603545736,-500.0,0.0002,2]
[339420608,1727603545746,-740.56,0.0002,2]
[339420609,1727603545758,-500.0,0.0002,2]
[339420610,1727603545769,-2084.73,0.0002,2]
[339420611,1727603545780,-500.0,0.0002,2]
[339420612,1727603545795,-500.0,0.0002,2]
[339420613,1727603545805,-500.0,0.0002,2]
[339420614,1727603545815,-500.0,0.0002,2]
[339420615,1727603545827,-500.0,0.0002,2]
[339420616,1727603545839,-500.0,0.0002,2]
[339420617,1727603545851,-500.0,0.0002,2]
[339420618,1727603545861,-500.0,0.0002,2]
[339420619,1727603545871,-632.66,0.0002,2]
[339420620,1727603545882,-500.0,0.0002,2]
[339420621,1727603545892,-500.0,0.0002,2]
[339420622,1727603545902,-500.0,0.0002,2]
[339420623,1727603545913,-500.0,0.0002,2]
[339420624,1727603545924,-500.0,0.0002,2]
[339420625,1727603545934,-500.0,0.0002,2]
[339420626,1727603545943,-783.43,0.0002,2]
[339420627,1727603545952,-500.0,0.0002,2]
[339420628,1727603545961,-500.0,0.0002,2]
[339420629,1727603545970,-500.0,0.0002,2]
[339420630,1727603545980,-500.0,0.0002,2]
[339420631,1727603545990,-500.0,0.0002,2]
[339420632,1727603545999,-500.0,0.0002,2]
[339420633,1727603546008,-1316.7,0.0002,2]
[339420634,1727603546018,-1112.68,0.0002,2]
[339420635,1727603546027,-500.0,0.0002,2]
[339420636,1727603546036,-511.7337852,0.0002,2]
[339420637,1727603546045,-500.0,0.0002,2]
[339420638,1727603546054,-500.0,0.0002,2]
[339420639,1727603546064,-151.1474947,0.0002,2]
[339420640,1727603546073,-707.65,0.0002,2]